fUST/lending_fUST_20240411
["ID","MTS","AMOUNT","RATE_DAILY","PERIOD"]
[322119559,1712808654095,-500.0,0.00043835,21]
[322119560,1712808654104,-746.32,0.00043835,21]
[322119561,1712808654113,-1105.3,0.00043835,21]
[322119562,1712808654122,-500.0,0.00043835,21]
[322119563,1712808654131,-500.0,0.00043835,21]
[322119564,1712808654140,-500.0,0.00043835,21]
[322119565,1712808654149,-400.30058602,0.00043836,30]
[322119566,1712808654159,-500.0,0.00044109,21]
[322119567,1712808654168,-186.050641,0.00044109,21]
[322119568,1712808654177,-1218.04,0.00044109,21]
[322119569,1712808654186,-4979.49,0.00044109,21]
[322119570,1712808654195,-724.67,0.00044109,21]
[322119571,1712808654205,-639.3,0.00044109,21]
[322119572,1712808654214,-500.0,0.00044109,21]
[322119573,1712808654223,-500.0,0.00044109,21]
[322119574,1712808654232,-500.0,0.00044109,21]
[322119575,1712808654241,-2351.25,0.00044109,21]
[322119576,1712808654251,-2908.9,0.00044109,21]
[322119577,1712808654260,-500.0,0.00044109,21]
[322119578,1712808654270,-642.10257973,0.00044109,21]
[322119579,1712808654279,-500.0,0.00044109,21]
[322119580,1712808654288,-513.38,0.00044109,21]
[322119581,1712808654297,-500.0,0.00044109,21]
[322119582,1712808654306,-500.0,0.00044109,21]
[322119583,1712808654315,-580.48,0.00044109,21]
[322119584,1712808654324,-500.0,0.00044109,21]
[322119585,1712808654333,-746.32,0.00044109,21]
[322119586,1712808654343,-1105.3,0.00044109,21]
[322119587,1712808654352,-500.0,0.00044109,21]
[322119588,1712808654361,-500.39242958,0.00044109,21]
[322119589,1712808654370,-500.0,0.00044109,21]
[322119590,1712808654379,-162.020611,0.00044257,2]
[322119591,1712808654388,-162.498776,0.00044257,2]
[322119592,1712808654398,-500.0,0.00044383,21]
[322119593,1712808654409,-1218.04,0.00044383,21]
[322119594,1712808654421,-4979.49,0.00044383,21]
[322119595,1712808654430,-724.67,0.00044383,21]
[322119596,1712808654439,-639.3,0.00044383,21]
[322119597,1712808654449,-500.0,0.00044383,21]
[322119598,1712808654459,-500.0,0.00044383,21]
[322119599,1712808654468,-500.0,0.00044383,21]
[322119600,1712808654477,-2351.25,0.00044383,21]
[322119601,1712808654486,-2908.9,0.00044383,21]
[322119602,1712808654495,-276.81301441,0.00044383,21]
[322119603,1712808654505,-500.0,0.00044383,21]
[322119604,1712808654514,-513.38,0.00044383,21]
[322119605,1712808654522,-312.89341374,0.00044383,21]
[322119606,1712808654532,-500.0,0.00044383,21]
[322119607,1712808654541,-580.48,0.00044383,21]
[322119608,1712808654550,-500.0,0.00044383,21]
[322119609,1712808654560,-746.32,0.00044383,21]
[322119610,1712808654569,-1105.3,0.00044383,21]
[322119611,1712808654578,-500.0,0.00044383,21]
[322119612,1712808654587,-500.0,0.00044383,21]
[322119613,1712808654597,-644.85044317,0.000444,5]
[322119614,1712808654683,-502.37647293,0.00041095,21]
[322119615,1712808654692,-109.12018085,0.00041095,21]
[322119673,1712809411914,156.85107966,0.00020542,2]
[322119674,1712809431914,258.7099965,0.00020542,2]
[322119675,1712809437031,361.03908347,0.00020541,2]
[322119678,1712809721022,178.52894,0.00022355,2]
[322119679,1712809735057,1520.40564583,0.00020255,2]
[322119680,1712809747151,-211.50234221,0.00023408,2]
[322119681,1712809747179,-1308.15892502,0.00023409,2]
[322119682,1712809747334,-154.92253873,0.00023409,2]
[322119683,1712809747355,-300.0,0.0002341,2]
[322119684,1712809747376,-300.0,0.0002341,2]
[322119685,1712809747396,-1494.03785259,0.0002341,2]
[322119686,1712809747415,-283.48016999,0.0002341,2]
[322119687,1712809747435,-364.77396862,0.00023411,2]
[322119688,1712809747455,-2446.25979371,0.00023411,2]
[322119689,1712809747477,-193.09908054,0.00023412,2]
[322119690,1712809747497,-887.19168702,0.00023412,2]
[322119691,1712809747519,-925.31693807,0.00023412,2]
[322119692,1712809747539,-5569.16345896,0.00023413,2]
[322119693,1712809747559,-200.0,0.00023415,2]
[322119694,1712809747584,-22755.98720092,0.00024272,2]
[322119695,1712809747605,-157.80272403,0.00024278,2]
[322119696,1712809747626,-269.03377573,0.00024376,2]
[322119697,1712809747646,-300.0,0.00024377,2]
[322119698,1712809747666,-2267.2288141,0.00024388,2]
[322119699,1712809747687,-275.108,0.00024933,2]
[322119700,1712809747707,-3002.04550632,0.00024934,2]
[322119701,1712809756178,-21897.95449368,0.00024934,2]
[322119702,1712809756200,-250.0,0.00025249,2]
[322119703,1712809756220,-1520.40564583,0.00025255,2]
[322119704,1712809756240,-380.0,0.00025373,2]
[322119705,1712809756262,-420.0,0.00025403,2]
[322119706,1712809756284,-1945.5224297,0.00025424,2]
[322119707,1712809756304,-420.0,0.00025751,2]
[322119708,1712809756324,-719.2,0.00025929,2]
[322119709,1712809756344,-165.57639,0.00026108,2]
[322119710,1712809756365,-157.80272403,0.00026368,2]
[322119711,1712809756384,-241.19346956,0.00027297,2]
[322119712,1712809756404,-467.69831707,0.00027389,2]
[322119713,1712809756424,-32938.07192663,0.00027391,2]
[322119714,1712809771115,-737.02838319,0.0002602,2]
[322119715,1712809771138,-179.96903717,0.00027388,2]
[322119716,1712809771161,-821.14092844,0.00027389,2]
[322119717,1712809771184,-889.30553107,0.00027389,2]
[322119718,1712809771208,-887.19168702,0.00027389,2]
[322119719,1712809771231,-365.16769138,0.00027389,2]
[322119720,1712809771255,-1312.17904408,0.00027389,2]
[322119721,1712809771278,-193.09908054,0.0002739,2]
[322119722,1712809771301,-3919.93115084,0.0002739,2]
[322119723,1712809771324,-283.48016999,0.0002739,2]
[322119724,1712809771347,-1494.03785259,0.0002739,2]
[322119725,1712809771370,-3520.42077747,0.0002739,2]
[322119726,1712809771394,-211.50234221,0.0002739,2]
[322119727,1712809771418,-6294.65791987,0.00027391,2]
[322119728,1712809771439,-245.03513,0.00027397,2]
[322119729,1712809771461,-162.060459,0.00027397,2]
[322119730,1712809771482,-166.666666,0.00027397,2]
[322119731,1712809771504,-249.11887562,0.0002743,2]
[322119732,1712809771527,-587.0,0.00027564,2]
[322119733,1712809771552,-166.666666,0.00028038,2]
[322119734,1712809771575,-587.0,0.00028327,2]
[322119735,1712809771598,-157.80272403,0.00028457,2]
[322119736,1712809771621,-166.666666,0.00028679,2]
[322119737,1712809771644,-52.7085545,0.00029321,2]
[322119752,1712809832853,-717.01263193,0.00027938,3]
[322119753,1712809832863,-113.9581115,0.00029321,2]
[322119754,1712809832872,-306.30438345,0.00029321,2]
[322119755,1712809832882,-166.666666,0.00029962,2]
[322119756,1712809832892,-157.80272403,0.00030547,2]
[322119757,1712809832901,-166.666666,0.00030603,2]
[322119758,1712809832910,-241.19346953,0.00030722,2]
[322119759,1712809832919,-186.89534756,0.00032472,2]
[322119793,1712809838600,-147.91547477,0.00032472,2]
[322119794,1712809838613,-157.80272403,0.00032637,2]
[322119795,1712809838625,-2000.0,0.000328,2]
[322119796,1712809838635,-319.91534022,0.00032809,30]
[322119797,1712809838644,-2148.746009,0.0003281,2]
[322119799,1712809838654,-400.0,0.00033162,2]
[322119801,1712809838664,-400.0,0.00033162,2]
[322119803,1712809838673,-330.0,0.00033163,2]
[322119805,1712809838683,-3746.93509095,0.00033163,4]
[322119807,1712809838692,-245.03513,0.00033165,2]
[322119809,1712809838702,-241.19346953,0.00034146,2]
[322119811,1712809838711,-157.80272403,0.00034726,2]
[322119812,1712809838719,-2237.46368802,0.00034995,4]
[322119813,1712809838728,-6082.42267853,0.00034996,4]
[322119814,1712809838737,-159.12112488,0.00035,30]
[322119815,1712809838747,-596.36211063,0.00035099,2]
[322119816,1712809838756,-1018.927356,0.000351,19]
[322119817,1712809838765,-1000.0,0.000356,19]
[322119818,1712809838775,-1135.859682,0.00035616,120]
[322119819,1712809838784,-560.0,0.00035625,2]
[322119820,1712809838793,-560.0,0.00036478,2]
[322119821,1712809838802,-157.80272403,0.00036816,2]
[322119822,1712809838811,-1166.50255339,0.00036986,4]
[322119823,1712809838820,-3020.86314347,0.00037,2]
[322119824,1712809838830,-162.060459,0.0003736,2]
[322119825,1712809838839,-241.19346953,0.00037571,2]
[322119826,1712809838851,-150.46531321,0.00038117,7]
[322119827,1712809838859,-783.0,0.00038271,2]
[322119828,1712809838868,-2241.84576235,0.0003845,4]
[322119829,1712809838877,-174.994208,0.00038451,2]
[322119830,1712809838886,-719.2,0.00038893,2]
[322119831,1712809838895,-157.80272403,0.00038905,2]
[322119832,1712809838904,-245.03513,0.00038933,2]
[322119833,1712809838913,-234.21223052,0.00039061,4]
[322119834,1712809838922,-155.88260566,0.00039858,4]
[322119835,1712809838931,-799.19959429,0.00039858,39]
[322119836,1712809838940,-383.99154567,0.00039858,4]
[322119837,1712809838950,-801.41782181,0.00039858,4]
[322119838,1712809838959,-324.76490035,0.00039858,4]
[322119839,1712809838968,-242.71374682,0.00039858,4]
[322119840,1712809838980,-157.434215,0.00039858,4]
[322119841,1712809838989,-233.62114203,0.00039858,4]
[322119842,1712809838998,-653.54366929,0.00039858,4]
[322119843,1712809839007,-491.49203085,0.00039858,4]
[322119844,1712809839017,-227.3739437,0.00039858,4]
[322119845,1712809839027,-284.47700355,0.00039858,4]
[322119846,1712809839035,-299.12969198,0.00039858,4]
[322119847,1712809839045,-241.85829277,0.00039858,4]
[322119848,1712809839054,-415.7750495,0.00039858,4]
[322119849,1712809839064,-347.95242762,0.00039858,4]
[322119850,1712809839074,-192.79502629,0.00039858,4]
[322119851,1712809839084,-225.7911753,0.00039858,4]
[322119852,1712809839094,-1192.01944116,0.00039858,4]
[322119853,1712809839107,-283.73543725,0.00039859,4]
[322119854,1712809839119,-3782.12896524,0.0003986,4]
[322119855,1712809839130,-278.05881588,0.0003986,4]
[322119856,1712809839140,-290.79980931,0.0003986,7]
[322119857,1712809839149,-201.36868336,0.0003986,4]
[322119858,1712809839159,-612.05832408,0.0003986,2]
[322119859,1712809839168,-1086.90254792,0.0003986,4]
[322119860,1712809839177,-2747.37298528,0.0003986,7]
[322119861,1712809839188,-868.18863525,0.0003986,4]
[322119862,1712809839197,-490.67957045,0.0003986,4]
[322119863,1712809839208,-263.74952097,0.0003986,4]
[322119864,1712809839217,-156.53177183,0.0003986,4]
[322119865,1712809839227,-257.7839477,0.0003986,4]
[322119866,1712809839236,-801.13928345,0.0003986,4]
[322119867,1712809839245,-188.41737304,0.0003986,2]
[322119868,1712809839254,-155.430717,0.00039861,4]
[322119869,1712809839263,-31736.77503069,0.00039862,2]
[322119870,1712809839272,-5149.99145875,0.0004,5]
[322119871,1712809839281,-1453.81854527,0.0004,10]
[322119872,1712809839291,-1453.81854527,0.0004,10]
[322119873,1712809839301,-783.0,0.00040126,3]
[322119874,1712809839311,-200.0,0.00040504,120]
[322119875,1712809839320,-166.22814118,0.00040762,30]
[322119876,1712809839330,-36855.25369253,0.000408,120]
[322119877,1712809839339,-241.19346953,0.00040995,2]
[322119878,1712809839348,-157.80272403,0.00040995,2]
[322119879,1712809839359,-188.45892437,0.00041,2]
[322119880,1712809839369,-1061.3856405,0.00041,4]
[322119881,1712809839378,-1752.4112,0.00041,60]
[322119882,1712809839388,-2000.0,0.00041,30]
[322119883,1712809839398,-2000.0,0.0004101,30]
[322119884,1712809839407,-2000.0,0.0004102,30]
[322119885,1712809839416,-2168.465058,0.0004103,30]
[322119886,1712809839425,-528.33119451,0.00041053,4]
[322119887,1712809839434,-156.61371406,0.00041094,31]
[322119888,1712809839443,-500.0,0.00041094,31]
[322119889,1712809839453,-478.05115889,0.00041094,31]
[322119890,1712809839462,-201.1736333,0.00041094,31]
[322119891,1712809839471,-500.0,0.00041094,31]
[322119892,1712809839480,-564.6774468,0.00041094,31]
[322119893,1712809839489,-333.48374639,0.00041094,4]
[322119894,1712809839499,-200.0,0.00041094,4]
[322119895,1712809839509,-777.00349469,0.00041094,4]
[322119896,1712809839518,-219.06785182,0.00041094,4]
[322119897,1712809839529,-733.69338401,0.00041094,4]
[322119898,1712809839538,-179.83138375,0.00041094,4]
[322119900,1712809839547,-309.95496777,0.00041094,4]
[322119901,1712809839558,-973.50518926,0.00041094,4]
[322119902,1712809839567,-1505.05,0.00041094,2]
[322119903,1712809839576,-1505.05,0.00041094,2]
[322119904,1712809839585,-1505.05,0.00041094,2]
[322119905,1712809839595,-1505.05,0.00041094,2]
[322119906,1712809839605,-1505.05,0.00041094,2]
[322119907,1712809839615,-1505.05,0.00041094,2]
[322119908,1712809839624,-1505.05,0.00041094,2]
[322119909,1712809839633,-1505.05,0.00041094,2]
[322119910,1712809839642,-37923.87703945,0.00041095,5]
[322119911,1712809839655,-6349.96,0.00041095,5]
[322119915,1712809840909,-386.11774254,0.00041095,5]
[322119922,1712809843786,-26507.36611709,0.00041095,5]
[322119923,1712809843794,-1158.3104606,0.00041095,4]
[322119924,1712809843804,-398.12624103,0.00041095,120]
[322119925,1712809843813,-10077.73481453,0.00041095,120]
[322119926,1712809843822,-500.0,0.00041095,14]
[322119927,1712809843831,-500.0,0.00041095,21]
[322119928,1712809843840,-500.0,0.00041095,21]
[322119929,1712809843849,-500.0,0.00041095,21]
[322119930,1712809843859,-500.0,0.00041095,21]
[322119931,1712809843867,-500.0,0.00041095,21]
[322119932,1712809843877,-500.0,0.00041095,21]
[322119933,1712809843887,-502.77541635,0.00041095,21]
[322119934,1712809843896,-500.0,0.00041095,21]
[322119935,1712809843905,-501.4725826,0.00041095,21]
[322119936,1712809843914,-200.35160402,0.00041095,21]
[322119937,1712809843923,-500.0,0.00041095,21]
[322119938,1712809843932,-500.0,0.00041095,21]
[322119939,1712809843941,-500.0,0.00041095,21]
[322119940,1712809843951,-413.58475966,0.00041095,21]
[322119941,1712809843960,-500.0,0.00041095,21]
[322119942,1712809843969,-500.0,0.00041095,21]
[322119943,1712809843978,-503.13324321,0.00041095,21]
[322119944,1712809843987,-500.0,0.00041095,21]
[322119945,1712809843996,-501.36707101,0.00041095,21]
[322119946,1712809844006,-501.28021417,0.00041095,21]
[322119947,1712809844015,-500.0,0.00041095,21]
[322119948,1712809844025,-500.0,0.00041095,21]
[322119949,1712809844034,-500.0,0.00041095,21]
[322119950,1712809844044,-500.0,0.00041095,21]
[322119951,1712809844052,-494.49130714,0.00041095,21]
[322119952,1712809844062,-500.0,0.00041095,21]
[322119953,1712809844071,-501.26145236,0.00041095,21]
[322119954,1712809844080,-500.0,0.00041095,21]
[322119955,1712809844089,-500.0,0.00041095,21]
[322119956,1712809844099,-500.0,0.00041095,21]
[322119957,1712809844109,-502.12018911,0.00041095,21]
[322119958,1712809844120,-502.06828708,0.00041095,21]
[322119959,1712809844132,-500.0,0.00041095,21]
[322119960,1712809844141,-502.2496843,0.00041095,21]
[322119961,1712809844149,-502.15497896,0.00041095,21]
[322119962,1712809844158,-448.71045399,0.00041095,21]
[322119963,1712809844167,-500.0,0.00041095,21]
[322119964,1712809844177,-364.7349128,0.00041095,21]
[322119965,1712809844186,-500.0,0.00041095,21]
[322119966,1712809844195,-522.45696122,0.00041095,21]
[322119967,1712809844206,-500.0,0.00041095,21]
[322119968,1712809844215,-500.0,0.00041095,21]
[322119969,1712809844224,-500.0,0.00041095,21]
[322119970,1712809844233,-500.0,0.00041095,21]
[322119971,1712809844242,-500.0,0.00041095,21]
[322119972,1712809844251,-410.82351968,0.00041095,21]
[322119973,1712809844260,-500.0,0.00041095,21]
[322119974,1712809844269,-500.0,0.00041095,21]
[322119975,1712809844278,-641.03013627,0.00041095,21]
[322119976,1712809844287,-594.97978435,0.00041095,21]
[322119977,1712809844297,-500.0,0.00041095,21]
[322119978,1712809844306,-500.0,0.00041095,21]
[322119979,1712809844315,-500.0,0.00041095,21]
[322119980,1712809844324,-502.27032178,0.00041095,21]
[322119981,1712809844333,-577.3584247,0.00041095,21]
[322119982,1712809844342,-503.61968857,0.00041095,21]
[322119983,1712809844351,-505.26516391,0.00041095,21]
[322119984,1712809844361,-500.0,0.00041095,21]
[322119985,1712809844370,-500.0,0.00041095,21]
[322119986,1712809844379,-500.0,0.00041095,21]
[322119987,1712809844389,-1008.73846354,0.00041095,21]
[322119988,1712809844398,-500.0,0.00041095,21]
[322119989,1712809844407,-500.0,0.00041095,21]
[322119990,1712809844416,-500.0,0.00041095,21]
[322119991,1712809844426,-500.0,0.00041095,21]
[322119992,1712809844435,-500.0,0.00041095,21]
[322119993,1712809844445,-500.0,0.00041095,21]
[322119994,1712809844454,-500.0,0.00041095,21]
[322119995,1712809844463,-500.0,0.00041095,21]
[322119996,1712809844472,-516.66308847,0.00041095,21]
[322119997,1712809844481,-300.0,0.00041095,7]
[322119998,1712809844490,-505.07206056,0.00041095,21]
[322119999,1712809844499,-504.66934937,0.00041095,21]
[322120000,1712809844508,-500.0,0.00041095,21]
[322120001,1712809844517,-3827.0,0.00041095,5]
[322120002,1712809844526,-494.18512345,0.00041095,21]
[322120003,1712809844535,-500.0,0.00041095,21]
[322120004,1712809844544,-503.04744794,0.00041095,21]
[322120005,1712809844553,-500.0,0.00041095,21]
[322120006,1712809844562,-500.0,0.00041095,21]
[322120007,1712809844571,-500.0,0.00041095,21]
[322120008,1712809844580,-505.32478122,0.00041095,21]
[322120009,1712809844590,-501.41868581,0.00041095,21]
[322120010,1712809844599,-506.91497064,0.00041095,21]
[322120011,1712809844609,-500.0,0.00041095,21]
[322120012,1712809844619,-500.0,0.00041095,21]
[322120013,1712809844628,-500.0,0.00041095,21]
[322120014,1712809844637,-500.0,0.00041095,21]
[322120015,1712809844646,-504.48587654,0.00041095,21]
[322120016,1712809844655,-500.0,0.00041095,21]
[322120017,1712809844665,-511.27855705,0.00041095,21]
[322120018,1712809844674,-500.0,0.00041095,21]
[322120019,1712809844683,-500.0,0.00041095,21]
[322120020,1712809844693,-179.99082336,0.00041095,21]
[322120021,1712809844702,-500.0,0.00041095,21]
[322120022,1712809844712,-501.66534041,0.00041095,21]
[322120023,1712809844722,-500.71925449,0.00041095,21]
[322120024,1712809844731,-501.16849589,0.00041095,21]
[322120025,1712809844740,-503.86496679,0.00041095,21]
[322120026,1712809844749,-505.19932681,0.00041095,21]
[322120027,1712809844758,-500.0,0.00041095,21]
[322120028,1712809844767,-502.41119111,0.00041095,20]
[322120029,1712809844776,-500.0,0.00041095,21]
[322120030,1712809844786,-500.0,0.00041095,21]
[322120031,1712809844795,-500.0,0.00041095,21]
[322120032,1712809844804,-500.0,0.00041095,21]
[322120033,1712809844813,-500.0,0.00041095,21]
[322120034,1712809844823,-500.0,0.00041095,21]
[322120035,1712809844832,-500.0,0.00041095,21]
[322120036,1712809844841,-500.0,0.00041095,21]
[322120037,1712809844851,-502.09472382,0.00041095,21]
[322120038,1712809844861,-558.27,0.00041095,21]
[322120039,1712809844870,-500.0,0.00041095,21]
[322120040,1712809844880,-500.0,0.00041095,21]
[322120041,1712809844890,-500.0,0.00041095,21]
[322120042,1712809844899,-500.0,0.00041095,21]
[322120043,1712809844910,-500.0,0.00041095,21]
[322120044,1712809844920,-500.0,0.00041095,21]
[322120045,1712809844929,-537.775399,0.00041095,21]
[322120046,1712809844939,-501.43905989,0.00041095,21]
[322120047,1712809844949,-500.0,0.00041095,21]
[322120048,1712809844958,-301.03007878,0.00041095,21]
[322120049,1712809844968,-196.39886338,0.00041095,21]
[322120050,1712809844977,-500.0,0.00041095,21]
[322120051,1712809844986,-500.0,0.00041095,21]
[322120052,1712809844996,-500.0,0.00041095,21]
[322120053,1712809845005,-500.0,0.00041095,21]
[322120054,1712809845014,-500.0,0.00041095,21]
[322120055,1712809845024,-500.0,0.00041095,21]
[322120056,1712809845034,-500.0,0.00041095,21]
[322120057,1712809845044,-500.0,0.00041095,21]
[322120058,1712809845054,-156.00968678,0.00041095,21]
[322120059,1712809845064,-501.28982494,0.00041095,21]
[322120060,1712809845073,-514.03936812,0.00041095,21]
[322120061,1712809845082,-500.0,0.00041095,21]
[322120062,1712809845092,-501.87471464,0.00041095,21]
[322120063,1712809845102,-500.0,0.00041095,21]
[322120064,1712809845112,-7341.2192056,0.00041095,4]
[322120065,1712809845125,-2299.9869379,0.00041095,4]
[322120066,1712809845134,-500.0,0.00041095,21]
[322120067,1712809845143,-500.0,0.00041095,21]
[322120068,1712809845152,-500.0,0.00041095,21]
[322120069,1712809845162,-500.0,0.00041095,21]
[322120070,1712809845171,-500.0,0.00041095,21]
[322120071,1712809845180,-500.0,0.00041095,21]
[322120072,1712809845191,-500.0,0.00041095,21]
[322120073,1712809845209,-502.89314637,0.00041095,21]
[322120074,1712809845220,-500.0,0.00041095,21]
[322120075,1712809845232,-500.0,0.00041095,21]
[322120076,1712809845241,-538.49,0.00041095,21]
[322120077,1712809845251,-502.79978275,0.00041095,21]
[322120078,1712809845260,-364.94270183,0.00041095,21]
[322120079,1712809845269,-238.57246609,0.00041095,21]
[322120080,1712809845278,-500.0,0.00041095,21]
[322120081,1712809845287,-500.0,0.00041095,21]
[322120082,1712809845297,-500.0,0.00041095,21]
[322120083,1712809845307,-500.0,0.00041095,21]
[322120084,1712809845316,-500.0,0.00041095,21]
[322120085,1712809845325,-500.0,0.00041095,21]
[322120086,1712809845334,-500.0,0.00041095,21]
[322120087,1712809845343,-500.0,0.00041095,21]
[322120088,1712809845351,-500.0,0.00041095,21]
[322120089,1712809845361,-623.44950713,0.00041095,21]
[322120090,1712809845370,-500.0,0.00041095,21]
[322120091,1712809845380,-500.0,0.00041095,21]
[322120092,1712809845389,-500.0,0.00041095,21]
[322120093,1712809845398,-500.0,0.00041095,21]
[322120094,1712809845407,-164.95063645,0.00041095,21]
[322120095,1712809845417,-1286.18,0.00041095,21]
[322120096,1712809845427,-500.0,0.00041095,21]
[322120097,1712809845436,-500.0,0.00041095,21]
[322120098,1712809845445,-500.0,0.00041095,21]
[322120099,1712809845455,-500.0,0.00041095,21]
[322120100,1712809845464,-501.09750397,0.00041095,21]
[322120101,1712809845473,-500.0,0.00041095,21]
[322120102,1712809845483,-500.0,0.00041095,21]
[322120103,1712809845492,-2535.44,0.00041095,21]
[322120104,1712809845502,-500.0,0.00041095,21]
[322120105,1712809845511,-500.0,0.00041095,21]
[322120106,1712809845520,-500.0,0.00041095,21]
[322120107,1712809845529,-500.0,0.00041095,21]
[322120108,1712809845538,-500.0,0.00041095,21]
[322120109,1712809845547,-500.0,0.00041095,21]
[322120110,1712809845556,-501.76913259,0.00041095,21]
[322120111,1712809845566,-500.0,0.00041095,21]
[322120112,1712809845574,-502.78102773,0.00041095,21]
[322120113,1712809845583,-500.0,0.00041095,21]
[322120114,1712809845592,-500.0,0.00041095,21]
[322120115,1712809845602,-500.0,0.00041095,21]
[322120116,1712809845612,-657.77,0.00041095,21]
[322120117,1712809845622,-500.0,0.00041095,21]
[322120118,1712809845630,-500.0,0.00041095,21]
[322120119,1712809845639,-501.67812224,0.00041095,21]
[322120120,1712809845649,-500.0,0.00041095,21]
[322120121,1712809845736,-191.59750429,0.00041095,21]
[322120122,1712809845745,-500.8121081,0.00041095,21]
[322120123,1712809845755,-500.0,0.00041095,21]
[322120124,1712809845765,-500.0,0.00041095,21]
[322120125,1712809845775,-500.0,0.00041095,21]
[322120126,1712809845785,-500.0,0.00041095,21]
[322120127,1712809845794,-500.0,0.00041095,21]
[322120128,1712809845803,-500.0,0.00041095,21]
[322120129,1712809845813,-500.0,0.00041095,21]
[322120130,1712809845821,-500.0,0.00041095,21]
[322120131,1712809845831,-500.0,0.00041095,21]
[322120132,1712809845841,-502.05647825,0.00041095,21]
[322120133,1712809845850,-507.96,0.00041095,21]
[322120134,1712809845860,-500.0,0.00041095,21]
[322120135,1712809845869,-500.0,0.00041095,21]
[322120136,1712809845879,-500.0,0.00041095,21]
[322120137,1712809845888,-501.54645606,0.00041095,21]
[322120138,1712809845897,-500.0,0.00041095,21]
[322120139,1712809845906,-212.54286541,0.00041095,21]
[322120140,1712809845915,-500.0,0.00041095,21]
[322120141,1712809845924,-500.0,0.00041095,21]
[322120142,1712809845933,-500.0,0.00041095,21]
[322120143,1712809845942,-500.0,0.00041095,21]
[322120144,1712809845953,-2634.18,0.00041095,21]
[322120145,1712809845963,-502.1336035,0.00041095,21]
[322120146,1712809845973,-500.0,0.00041095,21]
[322120147,1712809845982,-500.0,0.00041095,21]
[322120148,1712809845991,-500.0,0.00041095,21]
[322120149,1712809846000,-500.0,0.00041095,21]
[322120150,1712809846009,-500.0,0.00041095,21]
[322120151,1712809846018,-500.0,0.00041095,21]
[322120152,1712809846027,-500.0,0.00041095,21]
[322120153,1712809846036,-502.08606864,0.00041095,21]
[322120154,1712809846045,-2234.6,0.00041095,21]
[322120155,1712809846056,-500.0,0.00041095,21]
[322120156,1712809846065,-500.0,0.00041095,21]
[322120157,1712809846074,-500.0,0.00041095,21]
[322120158,1712809846084,-500.0,0.00041095,21]
[322120159,1712809846093,-500.0,0.00041095,21]
[322120160,1712809846102,-500.0,0.00041095,21]
[322120161,1712809846112,-500.0,0.00041095,21]
[322120162,1712809846122,-500.0,0.00041095,21]
[322120163,1712809846134,-500.0,0.00041095,21]
[322120164,1712809846143,-500.0,0.00041095,21]
[322120165,1712809846152,-500.0,0.00041095,21]
[322120167,1712809846162,-517.96720848,0.00041095,21]
[322120168,1712809846172,-500.0,0.00041095,21]
[322120169,1712809846181,-500.0,0.00041095,21]
[322120171,1712809846191,-500.0,0.00041095,21]
[322120173,1712809846200,-501.17953853,0.00041095,21]
[322120175,1712809846211,-500.0,0.00041095,21]
[322120177,1712809846220,-500.0,0.00041095,21]
[322120179,1712809846229,-507.86226408,0.00041095,21]
[322120181,1712809846238,-500.0,0.00041095,21]
[322120183,1712809846247,-504.80079252,0.00041095,21]
[322120184,1712809846256,-500.0,0.00041095,21]
[322120185,1712809846265,-500.0,0.00041095,21]
[322120186,1712809846274,-500.0,0.00041095,21]
[322120187,1712809846284,-500.0,0.00041095,21]
[322120188,1712809846293,-500.0,0.00041095,21]
[322120189,1712809846302,-500.0,0.00041095,21]